lending/lending_fUSD_20250808
["ID","MTS","AMOUNT","RATE_DAILY","PERIOD"]
[378011035,1754667043860,-400.0,0.00018651,2]
[378011036,1754667043870,-183.69907692,0.00018651,2]
[378011037,1754667043881,-400.0,0.00018651,2]
[378011038,1754667043892,-400.0,0.00018651,2]
[378011039,1754667043902,-400.0,0.00018651,2]
[378011040,1754667043913,-400.0,0.00018651,2]
[378011042,1754667043923,-400.0,0.00018651,2]
[378011044,1754667043934,-400.0,0.00018651,2]
[378011047,1754667043944,-400.0,0.00018651,2]
[378011049,1754667043955,-504.36,0.00018651,2]
[378011050,1754667043965,-400.0,0.00018651,2]
[378011051,1754667043976,-400.0,0.00018651,2]
[378011052,1754667043987,-410.63,0.00018651,2]
[378011053,1754667043998,-433.44,0.00018651,2]
[378011054,1754667044008,-400.0,0.00018651,2]
[378011055,1754667044020,-414.50785657,0.00018651,2]
[378011056,1754667044031,-401.39703029,0.00018651,2]
[378011057,1754667044046,-438.1,0.00018651,2]
[378011058,1754667044057,-400.0,0.00018651,2]
[378011059,1754667044067,-400.0,0.00018651,2]
[378011060,1754667044078,-400.0,0.00018651,2]
[378011061,1754667044090,-404.78,0.00018651,2]
[378011062,1754667044100,-500.0,0.00018651,2]
[378011063,1754667044110,-721.33,0.00018651,2]
[378011064,1754667044122,-400.0,0.00018651,2]
[378011065,1754667044132,-400.0,0.00018651,2]
[378011066,1754667044143,-400.0,0.00018651,2]
[378011067,1754667044153,-400.0,0.00018651,2]
[378011068,1754667044163,-400.0,0.00018651,2]
[378011069,1754667044173,-400.0,0.00018651,2]
[378011070,1754667044184,-400.0,0.00018651,2]
[378011071,1754667044194,-400.0,0.00018651,2]
[378011072,1754667044205,-400.0,0.00018651,2]
[378011073,1754667044215,-400.0,0.00018651,2]
[378011074,1754667044226,-471.51,0.00018651,2]
[378011075,1754667044236,-400.0,0.00018651,2]
[378011076,1754667044246,-400.0,0.00018651,2]
[378011077,1754667044256,-400.0,0.00018651,2]
[378011078,1754667044266,-400.0,0.00018651,2]
[378011079,1754667044276,-562.36,0.00018651,2]
[378011080,1754667044286,-400.0,0.00018651,2]
[378011081,1754667044297,-193.82019199,0.000187,2]
[378011082,1754667044307,-1400.0,0.000187,6]
[378011083,1754667044318,-474.71,0.00018704,2]
[378011084,1754667044328,-3219.30679209,0.00018706,2]
[378011085,1754667044339,-500.0,0.00018752,2]
[378011086,1754667044349,-693.1,0.00018752,2]
[378011087,1754667044359,-500.0,0.00018752,2]
[378011088,1754667044370,-500.0,0.00018753,2]
[378011089,1754667044380,-400.0,0.00018753,2]
[378011090,1754667044390,-693.1,0.00018753,2]
[378011091,1754667044401,-2343.21,0.00018753,2]
[378011092,1754667044411,-1307.84,0.00018753,2]
[378011093,1754667044421,-500.0,0.00018753,2]
[378011094,1754667044431,-1814.88,0.00018753,2]
[378011095,1754667044441,-3439.82,0.00018753,2]
[378011096,1754667044452,-169.62,0.00018754,2]
[378011097,1754667044462,-156.94633586,0.00018763,2]
[378011098,1754667044472,-2007.71051108,0.00018764,2]
[378011099,1754667044483,-196.820943,0.00018771,2]
[378011100,1754667044493,-954.84,0.00018771,2]
[378011101,1754667044503,-1044.2,0.00018771,2]
[378011102,1754667044513,-230.514339,0.00018771,2]
[378011103,1754667044523,-1357.8,0.00018771,2]
[378011104,1754667044533,-279.096075,0.00018771,2]
[378011105,1754667044543,-2747.29,0.00018771,2]
[378011106,1754667044553,-613.42,0.00018771,2]
[378011107,1754667044563,-3156.8,0.00018771,2]
[378011108,1754667044573,-4217.06,0.00018771,2]
[378011109,1754667044583,-1155.76,0.00018771,2]
[378011110,1754667044595,-760.65,0.00018771,2]
[378011111,1754667044605,-400.0,0.00018771,2]
[378011112,1754667044615,-1188.91,0.00018771,2]
[378011113,1754667044625,-4407.09,0.00018771,2]
[378011114,1754667044635,-483.1,0.00018771,2]
[378011115,1754667044645,-2002.93121916,0.00018771,2]
[378011116,1754667046201,-400.0,0.00018498,2]
[378011117,1754667046212,-400.43728531,0.00018651,2]
[378011118,1754667046221,-400.0,0.00018651,2]
[378011119,1754667046231,-400.0,0.00018651,2]
[378011120,1754667046241,-1191.96878084,0.00018771,2]
[378011121,1754667046251,-2994.75,0.00018771,2]
[378011122,1754667046260,-1107.07,0.00018771,2]
[378011123,1754667046270,-1009.28,0.00018771,2]
[378011124,1754667046280,-4559.1,0.00018771,2]
[378011125,1754667046289,-1532.15,0.00018771,2]
[378011126,1754667046299,-1311.82,0.00018771,2]
[378011127,1754667046308,-1270.74,0.00018771,2]
[378011128,1754667046318,-2505.23,0.00018771,2]
[378011129,1754667046328,-500.0,0.00018771,2]
[378011130,1754667046338,-576.56,0.00018771,2]
[378011131,1754667046347,-1533.91,0.00018771,2]
[378011132,1754667046357,-400.0,0.00018771,2]
[378011133,1754667046367,-7250.99,0.00018771,2]
[378011134,1754667046376,-1211.34,0.00018771,2]
[378011135,1754667046386,-404.37626125,0.00018771,2]
[378011136,1754667046396,-4961.62,0.00018771,2]
[378011137,1754667046405,-1155.29,0.00018771,2]
[378011138,1754667046415,-4031.04,0.00018771,2]
[378011139,1754667046424,-500.0,0.00018771,2]
[378011140,1754667046435,-706.9,0.00018771,2]
[378011141,1754667046445,-621.32,0.00018771,2]
[378011142,1754667046456,-2931.53,0.00018771,2]
[378011143,1754667046467,-400.0,0.00018771,2]
[378011144,1754667046476,-5692.25,0.00018771,2]
[378011145,1754667046487,-400.0,0.00018771,2]
[378011146,1754667046497,-860.8,0.00018771,2]
[378011147,1754667046507,-469.72561097,0.00018771,2]
[378011148,1754667046517,-2626.33,0.00018771,2]
[378011149,1754667046527,-835.4,0.00018771,2]
[378011150,1754667046538,-400.0,0.00018771,2]
[378011151,1754667046548,-400.0,0.00018771,2]
[378011152,1754667046558,-400.0,0.00018771,2]
[378011153,1754667046569,-1102.77,0.00018772,2]
[378011154,1754667046580,-1000.41,0.00018772,2]
[378011155,1754667046589,-400.0,0.00018772,2]
[378011156,1754667046599,-1000.0,0.00018772,2]
[378011157,1754667046608,-1129.65,0.00018772,2]
[378011158,1754667046618,-400.0,0.00018772,2]
[378011159,1754667046628,-500.0,0.00018772,2]
[378011160,1754667046637,-400.0,0.00018772,2]
[378011161,1754667046647,-479.82,0.00018772,2]
[378011162,1754667046657,-1016.99,0.00018772,2]
[378011163,1754667046667,-3346.51,0.00018772,2]
[378011164,1754667046676,-486.86,0.00018772,2]
[378011165,1754667046686,-778.48,0.00018772,2]
[378011166,1754667046696,-400.0,0.00018772,2]
[378011167,1754667046706,-874.41,0.00018772,2]
[378011169,1754667046716,-400.0,0.00018772,2]
[378011171,1754667046725,-890.1,0.00018772,2]
[378011173,1754667046735,-400.0,0.00018772,2]
[378011175,1754667046744,-599.41,0.00018772,2]
[378011177,1754667046755,-400.0,0.00018772,2]
[378011179,1754667046764,-625.7,0.00018772,2]
[378011180,1754667046775,-400.0,0.00018772,2]
[378011181,1754667046785,-987.38,0.00018772,2]
[378011182,1754667046805,-416.41,0.00018772,2]
[378011183,1754667046815,-985.54,0.00018772,2]
[378011184,1754667046825,-400.0,0.00018772,2]
[378011185,1754667046835,-400.0,0.00018772,2]
[378011186,1754667046844,-505.89,0.00018772,2]
[378011187,1754667046854,-400.0,0.00018772,2]
[378011188,1754667046864,-1057.62,0.00018772,2]
[378011189,1754667046874,-400.0,0.00018772,2]
[378011190,1754667046884,-792.38,0.00018772,2]
[378011191,1754667046893,-453.26,0.00018772,2]
[378011192,1754667046903,-490.52,0.00018772,2]
[378011193,1754667046913,-400.0,0.00018772,2]
[378011194,1754667046923,-400.0,0.00018772,2]
[378011195,1754667046932,-400.0,0.00018772,2]
[378011196,1754667046942,-400.0,0.00018772,2]
[378011197,1754667046951,-416.57,0.00018772,2]
[378011198,1754667046961,-1008.54,0.00018772,2]
[378011199,1754667046970,-1007.92,0.00018772,2]
[378011200,1754667046980,-400.0,0.00018772,2]
[378011201,1754667046989,-400.0,0.00018772,2]
[378011202,1754667047000,-400.0,0.00018772,2]
[378011203,1754667047010,-786.71,0.00018772,2]
[378011204,1754667047024,-1405.11,0.00018772,2]
[378011205,1754667047035,-425.4,0.00018772,2]
[378011206,1754667047049,-848.41,0.00018772,2]
[378011207,1754667047059,-1325.94,0.00018772,2]
[378011208,1754667047068,-1347.03,0.00018772,2]
[378011209,1754667047078,-400.0,0.00018772,2]
[378011210,1754667047089,-400.0,0.00018772,2]
[378011211,1754667047099,-400.0,0.00018772,2]
[378011212,1754667047109,-400.0,0.00018772,2]
[378011213,1754667047120,-1018.03,0.00018772,2]
[378011214,1754667047130,-400.0,0.00018772,2]
[378011215,1754667047140,-400.0,0.00018772,2]
[378011216,1754667047150,-400.0,0.00018772,2]
[378011217,1754667047160,-1120.41,0.00018772,2]
[378011218,1754667047170,-440.26,0.00018772,2]
[378011219,1754667047180,-406.45,0.00018772,2]
[378011220,1754667047190,-863.3,0.00018772,2]
[378011221,1754667047199,-4324.27,0.00018772,2]
[378011222,1754667047209,-497.71,0.00018772,2]
[378011223,1754667047219,-400.0,0.00018772,2]
[378011224,1754667047229,-586.61,0.00018772,2]
[378011225,1754667047239,-639.47,0.00018772,2]
[378011226,1754667047249,-891.78,0.00018772,2]
[378011227,1754667047259,-400.0,0.00018772,2]
[378011228,1754667047345,-909.52,0.00018772,2]
[378011229,1754667047355,-400.0,0.00018772,2]
[378011230,1754667047365,-578.24,0.00018772,2]
[378011231,1754667047374,-842.71,0.00018772,2]
[378011232,1754667047384,-2016.53,0.00018772,2]
[378011233,1754667047394,-428.49,0.00018772,2]
[378011234,1754667047404,-1569.35,0.00018772,2]
[378011235,1754667047413,-400.0,0.00018772,2]
[378011236,1754667047422,-1318.19,0.00018772,2]
[378011237,1754667047432,-856.72,0.00018772,2]
[378011238,1754667047441,-400.0,0.00018772,2]
[378011239,1754667047451,-1079.87,0.00018772,2]
[378011240,1754667047460,-1562.44,0.00018772,2]
[378011241,1754667047470,-400.0,0.00018772,2]
[378011242,1754667047480,-400.0,0.00018772,2]
[378011243,1754667047489,-1796.3,0.00018772,2]
[378011244,1754667047500,-1726.76,0.00018772,2]
[378011245,1754667047512,-400.0,0.00018772,2]
[378011246,1754667047523,-454.21,0.00018772,2]
[378011247,1754667047533,-752.73,0.00018772,2]
[378011248,1754667047546,-1122.3,0.00018772,2]
[378011249,1754667047555,-1145.53,0.00018772,2]
[378011250,1754667047565,-400.0,0.00018772,2]
[378011251,1754667047574,-625.25,0.00018772,2]
[378011252,1754667047584,-512.16,0.00018772,2]
[378011253,1754667047594,-1460.19,0.00018772,2]
[378011254,1754667047603,-400.0,0.00018772,2]
[378011255,1754667047612,-1427.42,0.00018772,2]
[378011256,1754667047621,-400.0,0.00018772,2]
[378011257,1754667047631,-1229.11,0.00018772,2]
[378011258,1754667047641,-400.0,0.00018772,2]
[378011259,1754667047650,-546.28,0.00018772,2]
[378011260,1754667047659,-619.51,0.00018772,2]
[378011261,1754667047668,-693.1,0.00018772,2]
[378011262,1754667047678,-1441.01,0.00018772,2]
[378011263,1754667047687,-1325.16,0.00018772,2]
[378011264,1754667047696,-432.69,0.00018772,2]
[378011265,1754667047706,-1233.33,0.00018772,2]
[378011266,1754667047715,-5104.3,0.00018772,2]
[378011267,1754667047724,-400.0,0.00018772,2]
[378011268,1754667047734,-1263.12,0.00018772,2]
[378011269,1754667047743,-612.4,0.00018772,2]
[378011270,1754667047752,-937.03,0.00018772,2]
[378011271,1754667047762,-620.45,0.00018772,2]
[378011272,1754667047772,-1294.73,0.00018772,2]
[378011273,1754667047781,-400.0,0.00018772,2]
[378011274,1754667047791,-400.0,0.00018772,2]
[378011275,1754667047800,-1467.42,0.00018772,2]
[378011276,1754667047809,-935.74,0.00018772,2]
[378011277,1754667047819,-400.0,0.00018772,2]
[378011278,1754667047828,-851.18,0.00018772,2]
[378011279,1754667047838,-400.0,0.00018772,2]
[378011280,1754667047847,-3474.59,0.00018772,2]
[378011281,1754667047856,-5502.32,0.00018772,2]
[378011282,1754667047865,-4826.59,0.00018772,2]
[378011283,1754667047875,-400.0,0.00018772,2]
[378011284,1754667047884,-1294.65,0.00018772,2]
[378011285,1754667047893,-1116.62,0.00018772,2]
[378011286,1754667047903,-1669.59,0.00018772,2]
[378011287,1754667047912,-1578.23,0.00018772,2]
[378011288,1754667047922,-528.0,0.00018772,2]
[378011289,1754667047932,-922.71,0.00018772,2]
[378011290,1754667047941,-400.0,0.00018772,2]
[378011291,1754667047951,-1704.45,0.00018772,2]
[378011292,1754667047961,-471.05,0.00018772,2]
[378011293,1754667047971,-865.71,0.00018772,2]
[378011294,1754667047980,-2217.7,0.00018772,2]
[378011295,1754667047990,-665.83,0.00018772,2]
[378011296,1754667047999,-459.43,0.00018772,2]
[378011297,1754667048010,-400.0,0.00018772,2]
[378011298,1754667048022,-1390.2,0.00018772,2]
[378011299,1754667048032,-545.08,0.00018772,2]
[378011300,1754667048046,-400.0,0.00018772,2]
[378011301,1754667048056,-778.35,0.00018772,2]
[378011302,1754667048066,-1868.22,0.00018772,2]
[378011303,1754667048075,-400.0,0.00018772,2]
[378011304,1754667048085,-400.0,0.00018772,2]
[378011305,1754667048095,-400.0,0.00018772,2]
[378011306,1754667048105,-5633.83,0.00018772,2]
[378011307,1754667048114,-919.79,0.00018772,2]
[378011308,1754667048125,-605.34,0.00018772,2]
[378011309,1754667048135,-400.0,0.00018772,2]
[378011310,1754667048145,-408.74,0.00018772,2]
[378011311,1754667048155,-6758.76,0.00018772,2]
[378011312,1754667048164,-609.27,0.00018772,2]
[378011313,1754667048175,-1138.19,0.00018772,2]
[378011314,1754667048185,-431.34,0.00018772,2]
[378011315,1754667048194,-841.35,0.00018772,2]
[378011316,1754667048204,-3942.64,0.00018772,2]
[378011317,1754667048213,-1039.85,0.00018772,2]
[378011318,1754667048223,-553.24,0.00018772,2]
[378011319,1754667048236,-2147.32,0.00018772,2]
[378011320,1754667048246,-496.1,0.00018772,2]
[378011321,1754667048256,-874.05,0.00018772,2]
[378011322,1754667048265,-516.25,0.00018772,2]
[378011323,1754667048275,-968.26,0.00018772,2]
[378011324,1754667048285,-772.91,0.00018772,2]
[378011325,1754667048295,-1654.6,0.00018772,2]
[378011326,1754667048305,-1080.69,0.00018772,2]
[378011327,1754667048315,-400.0,0.00018772,2]
[378011328,1754667048324,-551.86,0.00018772,2]
[378011329,1754667048334,-2407.66,0.00018772,2]
[378011330,1754667048343,-1665.05,0.00018772,2]
[378011331,1754667048353,-616.54,0.00018772,2]
[378011332,1754667048363,-1379.86,0.00018772,2]
[378011333,1754667048372,-982.5,0.00018772,2]
[378011334,1754667048381,-5294.74,0.00018772,2]
[378011335,1754667048391,-485.03,0.00018772,2]
[378011336,1754667048400,-400.0,0.00018772,2]
[378011337,1754667048411,-4202.28,0.00018772,2]
[378011338,1754667048420,-400.0,0.00018772,2]
[378011339,1754667048429,-1584.17,0.00018772,2]
[378011340,1754667048439,-741.44,0.00018772,2]
[378011341,1754667048448,-1372.03,0.00018772,2]
[378011342,1754667048457,-457.12,0.00018772,2]
[378011343,1754667048467,-400.0,0.00018772,2]
[378011344,1754667048476,-6091.41,0.00018772,2]
[378011345,1754667048485,-807.23,0.00018772,2]
[378011346,1754667048495,-962.16,0.00018772,2]
[378011347,1754667048504,-1759.63,0.00018772,2]
[378011348,1754667048514,-696.5,0.00018772,2]
[378011349,1754667048524,-5058.49,0.00018772,2]
[378011350,1754667048533,-3479.98,0.00018772,2]
[378011351,1754667048542,-427.54,0.00018772,2]
[378011352,1754667048552,-500.0,0.00018772,2]
[378011353,1754667048562,-831.32,0.00018772,2]
[378011354,1754667048571,-928.12,0.00018772,2]
[378011355,1754667048579,-444.07,0.00018772,2]
[378011356,1754667048588,-454.73,0.00018772,2]
[378011357,1754667048598,-680.92,0.00018772,2]
[378011358,1754667048607,-400.0,0.00018772,2]
[378011359,1754667048617,-572.96,0.00018772,2]
[378011360,1754667048626,-500.0,0.00018772,2]
[378011361,1754667048635,-983.67,0.00018772,2]
[378011362,1754667048645,-400.0,0.00018772,2]
[378011363,1754667048654,-400.0,0.00018772,2]
[378011364,1754667048663,-3547.41,0.00018772,2]
[378011365,1754667048672,-400.0,0.00018772,2]
[378011366,1754667048682,-400.0,0.00018772,2]
[378011367,1754667048691,-921.66,0.00018772,2]
[378011368,1754667048700,-400.0,0.00018772,2]
[378011369,1754667048710,-1306.28,0.00018772,2]
[378011370,1754667048720,-1535.66,0.00018772,2]
[378011371,1754667048729,-618.14,0.00018772,2]
[378011372,1754667048739,-580.99,0.00018772,2]
[378011373,1754667048749,-727.28,0.00018772,2]
[378011374,1754667048760,-1069.08,0.00018772,2]
[378011375,1754667048769,-407.7,0.00018772,2]
[378011376,1754667048778,-181.60718143,0.00018772,2]
[378011377,1754667048788,-1902.48,0.00018772,2]
[378011378,1754667048798,-418.75,0.00018772,2]
[378011379,1754667048807,-400.0,0.00018772,2]
[378011380,1754667048816,-999.48,0.00018772,2]
[378011381,1754667048826,-1676.33,0.00018772,2]
[378011382,1754667048835,-500.0,0.00018772,2]
[378011383,1754667048845,-400.0,0.00018772,2]
[378011384,1754667048855,-400.0,0.00018772,2]
[378011385,1754667048865,-1162.61,0.00018772,2]
[378011386,1754667048874,-416.24,0.00018772,2]
[378011387,1754667048883,-6309.07,0.00018772,2]
[378011388,1754667048893,-561.46,0.00018772,2]
[378011389,1754667048903,-500.0,0.00018772,2]
[378011390,1754667048912,-987.74,0.00018772,2]
[378011391,1754667048922,-636.86,0.00018772,2]
[378011392,1754667048932,-4356.49,0.00018772,2]
[378011393,1754667048941,-867.46,0.00018772,2]
[378011394,1754667048950,-400.0,0.00018772,2]
[378011395,1754667048960,-400.0,0.00018772,2]
[378011396,1754667048969,-4162.93,0.00018772,2]
[378011397,1754667048979,-400.0,0.00018772,2]
[378011398,1754667048988,-436.42,0.00018772,2]
[378011399,1754667048997,-5660.47,0.00018772,2]
[378011400,1754667049006,-400.0,0.00018772,2]
[378011401,1754667049016,-498.24,0.00018772,2]
[378011402,1754667049028,-853.03,0.00018772,2]
[378011403,1754667049042,-400.0,0.00018772,2]
[378011404,1754667049053,-400.0,0.00018773,2]
[378011405,1754667049063,-400.0,0.00018773,2]
[378011406,1754667049072,-400.0,0.00018773,2]
[378011407,1754667049083,-400.0,0.00018773,2]
[378011408,1754667049093,-400.0,0.00018773,2]
[378011409,1754667049102,-400.0,0.00018773,2]
[378011410,1754667049114,-400.0,0.00018773,2]
[378011411,1754667049127,-400.0,0.00018773,2]
[378011412,1754667049136,-442.21,0.00018773,2]
[378011413,1754667049147,-460.79,0.00018773,2]
[378011414,1754667049157,-400.0,0.00018773,2]
[378011415,1754667049166,-830.82,0.00018773,2]
[378011416,1754667049176,-400.0,0.00018773,2]
[378011417,1754667049185,-400.0,0.00018773,2]
[378011418,1754667049194,-400.48,0.00018773,2]
[378011419,1754667049204,-424.0,0.00018773,2]
[378011420,1754667049214,-1689.17,0.00018773,2]
[378011421,1754667049223,-400.0,0.00018773,2]
[378011422,1754667049233,-349.22147166,0.00018773,2]
[378011423,1754667049243,-400.0,0.00018773,2]
[378011424,1754667049253,-400.0,0.00018773,2]
[378011425,1754667049263,-400.0,0.00018773,2]
[378011426,1754667049275,-476.08,0.00018773,2]
[378011427,1754667049285,-400.0,0.00018773,2]
[378011428,1754667049294,-400.0,0.00018773,2]
[378011429,1754667049304,-400.0,0.00018773,2]
[378011430,1754667049314,-400.0,0.00018773,2]
[378011431,1754667049323,-400.0,0.00018773,2]
[378011432,1754667049333,-400.0,0.00018773,2]
[378011433,1754667049342,-400.0,0.00018773,2]
[378011434,1754667049352,-300.0,0.00018773,2]
[378011435,1754667049361,-400.0,0.00018773,2]
[378011436,1754667049371,-401.43,0.00018773,2]
[378011437,1754667049380,-554.19,0.00018773,2]
[378011438,1754667049389,-868.15,0.00018773,2]
[378011439,1754667049399,-400.0,0.00018773,2]
[378011440,1754667049408,-400.0,0.00018773,2]
[378011441,1754667049418,-400.0,0.00018773,2]
[378011442,1754667049428,-400.0,0.00018773,2]
[378011443,1754667049437,-400.0,0.00018773,2]
[378011444,1754667049446,-400.0,0.00018773,2]
[378011445,1754667049458,-446.89,0.00018773,2]
[378011446,1754667049467,-400.0,0.00018773,2]
[378011447,1754667049477,-400.0,0.00018773,2]
[378011448,1754667049487,-538.42,0.00018773,2]
[378011449,1754667049496,-400.0,0.00018773,2]
[378011450,1754667049505,-400.0,0.00018773,2]
[378011451,1754667049514,-400.0,0.00018773,2]
[378011452,1754667049527,-400.0,0.00018773,2]
[378011453,1754667049536,-400.0,0.00018773,2]
[378011454,1754667049546,-494.21,0.00018773,2]
[378011455,1754667049555,-405.47,0.00018773,2]
[378011456,1754667049564,-459.18,0.00018773,2]
[378011457,1754667049573,-407.89,0.00018773,2]
[378011458,1754667049582,-400.0,0.00018773,2]
[378011459,1754667049591,-400.0,0.00018773,2]
[378011460,1754667049600,-400.0,0.00018773,2]
[378011461,1754667049610,-151.51561576,0.00018773,2]
[378011462,1754667049619,-712.15,0.00018773,2]
[378011463,1754667049628,-400.0,0.00018773,2]
[378011464,1754667049638,-1536.22,0.00018773,2]
[378011465,1754667049648,-400.0,0.00018773,2]
[378011466,1754667049657,-400.0,0.00018773,2]
[378011467,1754667049666,-443.51,0.00018773,2]
[378011468,1754667049675,-400.0,0.00018773,2]
[378011469,1754667049684,-400.0,0.00018773,2]
[378011470,1754667049693,-400.0,0.00018773,2]
[378011471,1754667049702,-517.99,0.00018773,2]
[378011472,1754667049712,-400.0,0.00018773,2]
[378011473,1754667049721,-400.0,0.00018773,2]
[378011474,1754667049730,-1510.0,0.00018773,2]
[378011475,1754667049740,-400.0,0.00018773,2]
[378011476,1754667049749,-400.0,0.00018773,2]
[378011477,1754667049760,-437.55,0.00018773,2]
[378011478,1754667049772,-400.0,0.00018773,2]
[378011479,1754667049781,-400.0,0.00018773,2]
[378011480,1754667049790,-400.0,0.00018773,2]
[378011481,1754667049799,-400.0,0.00018773,2]
[378011482,1754667049808,-479.76,0.00018773,2]
[378011483,1754667049817,-627.97,0.00018773,2]
[378011484,1754667049827,-1071.12,0.00018773,2]
[378011485,1754667049837,-400.0,0.00018773,2]
[378011486,1754667049846,-575.61,0.00018773,2]
[378011487,1754667049855,-400.0,0.00018773,2]
[378011488,1754667049864,-1712.88,0.00018773,2]
[378011489,1754667049874,-400.0,0.00018773,2]
[378011490,1754667049883,-1517.33,0.00018773,2]
[378011491,1754667049892,-400.0,0.00018773,2]
[378011492,1754667049902,-1532.82,0.00018773,2]
[378011493,1754667049911,-976.09,0.00018773,2]
[378011494,1754667049920,-400.0,0.00018773,2]
[378011495,1754667049929,-400.0,0.00018773,2]
[378011496,1754667049938,-1239.26,0.00018773,2]
[378011497,1754667049947,-1651.2,0.00018773,2]
[378011498,1754667049957,-1469.76,0.00018773,2]
[378011499,1754667049966,-400.0,0.00018773,2]
[378011500,1754667049976,-723.58,0.00018773,2]
[378011501,1754667049985,-774.0,0.00018773,2]
[378011502,1754667049994,-400.0,0.00018773,2]
[378011503,1754667050003,-400.0,0.00018773,2]
[378011504,1754667050013,-840.4,0.00018773,2]
[378011505,1754667050024,-478.05,0.00018773,2]
[378011506,1754667050035,-1378.2,0.00018773,2]
[378011507,1754667050046,-1132.34,0.00018773,2]
[378011508,1754667050056,-550.6,0.00018773,2]
[378011509,1754667050065,-606.96,0.00018773,2]
[378011510,1754667050075,-400.0,0.00018773,2]
[378011511,1754667050085,-547.1,0.00018773,2]
[378011512,1754667050094,-1274.48,0.00018773,2]
[378011513,1754667050103,-400.0,0.00018773,2]
[378011514,1754667050112,-400.0,0.00018773,2]
[378011515,1754667050123,-3375.1,0.00018773,2]
[378011516,1754667050132,-400.0,0.00018773,2]
[378011517,1754667050142,-1240.21,0.00018773,2]
[378011518,1754667050154,-1407.34,0.00018773,2]
[378011519,1754667050163,-4182.72,0.00018773,2]
[378011520,1754667050172,-400.0,0.00018773,2]
[378011521,1754667050182,-400.0,0.00018773,2]
[378011522,1754667050190,-680.25,0.00018773,2]
[378011523,1754667050200,-1594.11,0.00018773,2]
[378011524,1754667050209,-400.0,0.00018773,2]
[378011525,1754667050218,-13621.45,0.00018773,2]
[378011526,1754667050227,-342.23,0.00018773,2]
[378011527,1754667050237,-1606.34,0.00018773,2]
[378011528,1754667050246,-469.04,0.00018773,2]
[378011529,1754667050255,-1248.06,0.00018773,2]
[378011530,1754667050265,-477.4,0.00018773,2]
[378011531,1754667050277,-959.54,0.00018773,2]
[378011532,1754667050286,-480.19,0.00018773,2]
[378011533,1754667050295,-3219.30679209,0.00018782,2]
[378011534,1754667050305,-152.59728249,0.00018795,2]
[378011535,1754667050315,-35505.17410601,0.000188,3]
[378011536,1754667050325,-457.64618948,0.000188,3]
[378011537,1754667050334,-1800.0,0.000188,6]
[378011538,1754667050343,-3219.30679209,0.00018859,2]
[378011539,1754667050353,-300.0,0.000189,6]
[378011540,1754667050363,-1335.79154779,0.000189,2]
[378011541,1754667050372,-5595.07486009,0.000189,2]
[378011542,1754667050382,-213.70748722,0.000189,2]
[378011543,1754667050391,-400.0,0.00018925,2]
[378011544,1754667050401,-400.0,0.00018925,2]
[378011545,1754667050411,-400.0,0.00018925,2]